[Event "34rd NATO Championship 2024"]
[Site "Rhodes"]
[Date "2024.10.22"]
[Round "3.45"]
[White "Rosseel, Kimball"]
[Black "Chapman, Chas"]
[Result "1-0"]
[ECO "D05"]
[WhiteElo "1896"]
[BlackElo "1696"]
[Annotator "NA RC"]
[PlyCount "65"]
[EventDate "2024.09.18"]
[EventType "swiss"]
[EventCountry "GRE"]
[SourceTitle "playchess.com"]
[Source "ChessBase"]
[SourceQuality "1"]
[TimeControl "5400+30"]

1. d4 {[%emt 0:00:04]} Nf6 {[%emt 0:00:24]} 2. Nf3 {[%emt 0:00:10]} d5 {[%emt 0:00:47]} 3. e3 {[%emt 0:00:08]} e6 {[%emt 0:01:24]} 4. Bd3 {[%emt 0:00:24]} Bd6 {[%emt 0:00:47]} 5. O-O {[%emt 0:00:44]} O-O {[%emt 0:02:06]} 6. b3 {[%emt 0:01:00]} a6 {[%emt 0:04:34]} 7. c4 {[%emt 1:31:30]} c5 {[%emt 0:09:09]} 8. Bb2 {[%emt 0:00:00]} b6 {[%emt 0:02:46]} 9. Nbd2 {[%emt 0:00:00]} Nbd7 {[%emt 0:02:50]} 10. Ne5 {[%emt 0:00:00]} Bb7 {[%emt 0:14:05]} 11. Qc2 {[%emt 0:00:00]} Qc7 {[%emt 0:03:11]} 12. f4 {[%emt 0:00:00]} cxd4 {[%emt 0:06:50]} 13. exd4 {[%emt 0:00:00]} Rac8 {[%emt 0:05:09]} 14. Rae1 {[%emt 0:00:00]} a5 {[%emt 0:01:15]} 15. Ndf3 {[%emt 0:00:00]} h6 {[%emt 0:02:39]} 16. Nxd7 {[%emt 0:00:00]} Qxd7 {[%emt 0:02:09]} 17. f5 {[%emt 0:00:00]} Bc6 {[%emt 0:15:29]} 18. fxe6 {[%emt 0:00:00]} fxe6 {[%emt 0:00:42]} 19. Qe2 {[%emt 0:00:00]} Rfe8 {[%emt 0:01:43]} 20. Ne5 {[%emt 0:00:00]} Bxe5 {[%emt 0:06:43]} 21. Qxe5 {[%emt 0:00:00]} Qc7 {[%emt 0:03:05]} 22. Qxc7 {[%emt 0:00:00]} Rxc7 {[%emt 0:00:12]} 23. Bg6 {[%emt 0:00:00]} Rec8 {[%emt 0:02:35]} 24. Rxe6 {[%emt 0:00:00]} dxc4 {[%emt 0:00:21]} 25. bxc4 {[%emt 0:00:00]} Bd7 {[%emt 0:00:21]} 26. Re7 {[%emt 0:00:00]} Ba4 {[%emt 0:02:24]} 27. Rxc7 {[%emt 0:00:00]} Rxc7 {[%emt 0:00:12]} 28. Bd3 {[%emt 0:00:00]} Kf7 {[%emt 0:01:02]} 29. d5 {[%emt 0:00:00]} Re7 {[%emt 0:10:06]} 30. Bd4 {[%emt 0:11:30]} Rb7 {[%emt 0:00:00]} 31. Rb1 {[%emt 0:00:00]} Nd7 {[%emt 0:00:00]} 32. Bf5 {[%emt 0:00:00]} Nc5 {[%emt 0:00:00]} 33. Bxc5 {[%emt 0:01:30]} 1-0

[Event "34rd NATO Championship 2024"]
[Site "Rhodes"]
[Date "2024.10.22"]
[Round "3.46"]
[White "Dowd, Patrick"]
[Black "Kries, Yvon"]
[Result "1-0"]
[ECO "D00"]
[WhiteElo "1885"]
[BlackElo "1765"]
[Annotator "NA RC"]
[PlyCount "155"]
[EventDate "2024.09.18"]
[EventType "swiss"]
[EventCountry "GRE"]
[SourceTitle "playchess.com"]
[Source "ChessBase"]
[SourceQuality "1"]
[TimeControl "5400+30"]

1. d4 {[%emt 0:00:03]} d5 {[%emt 0:00:08]} 2. Bf4 {[%emt 0:00:07]} c5 {[%emt 0:00:54]} 3. e3 {[%emt 0:00:38]} Nc6 {[%emt 0:00:23]} 4. Nc3 {[%emt 0:03:42]} a6 {[%emt 0:03:55]} 5. Nf3 {[%emt 0:04:09]} cxd4 {[%emt 0:02:36]} 6. Nxd4 {[%emt 0:01:14]} Nxd4 {[%emt 0:03:18]} 7. Qxd4 {[%emt 0:00:40]} Nf6 {[%emt 0:02:25]} 8. O-O-O {[%emt 0:02:10]} Be6 {[%emt 0:07:26]} 9. Be2 {[%emt 0:07:16]} g6 {[%emt 0:06:36]} 10. Bf3 {[%emt 0:07:15]} Bg7 {[%emt 0:06:43]} 11. Bxd5 {[%emt 0:08:53]} Bxd5 {[%emt 0:10:27]} 12. Nxd5 {[%emt 0:02:07]} O-O {[%emt 0:02:10]} 13. Nxf6+ {[%emt 0:04:43]} Bxf6 {[%emt 0:01:27]} 14. Be5 {[%emt 0:00:31]} Qa5 {[%emt 0:07:25]} 15. Bxf6 {[%emt 0:01:11]} exf6 {[%emt 0:02:45]} 16. Kb1 {[%emt 0:02:02]} Qf5 {[%emt 0:00:40]} 17. Qd2 {[%emt 0:07:53]} Rac8 {[%emt 0:01:00]} 18. f3 {[%emt 0:44:56]} Rfe8 {[%emt 0:01:29]} 19. e4 {[%emt 0:00:00]} Qc5 {[%emt 0:00:39]} 20. c3 {[%emt 0:00:00]} Qb5 {[%emt 0:03:35]} 21. Rhe1 {[%emt 0:00:00]} Re6 {[%emt 0:00:31]} 22. Qd5 {[%emt 0:00:00]} Rc5 {[%emt 0:01:32]} 23. Qd8+ {[%emt 0:00:00]} Kg7 {[%emt 0:01:21]} 24. Qd4 {[%emt 0:00:00]} Rec6 {[%emt 0:03:02]} 25. Rd3 {[%emt 0:00:00]} Rc4 {[%emt 0:02:13]} 26. Qe3 {[%emt 0:00:00]} Re6 {[%emt 0:02:39]} 27. Red1 {[%emt 0:00:00]} Qc6 {[%emt 0:00:55]} 28. Qd2 {[%emt 0:00:00]} Qb6 {[%emt 0:01:25]} 29. Rd6 {[%emt 0:00:00]} Rc6 {[%emt 0:00:37]} 30. Rxc6 {[%emt 0:00:00]} Rxc6 {[%emt 0:00:40]} 31. Qd4 {[%emt 0:00:00]} Qb5 {[%emt 0:25:04]} 32. Kc2 Qg5 {[%emt 0:00:00]} 33. Rd2 {[%emt 0:00:00]} Re6 {[%emt 0:00:00]} 34. g3 {[%emt 0:00:00]} Qa5 {[%emt 0:00:00]} 35. Qd5 {[%emt 0:00:00]} Qa4+ {[%emt 0:00:00]} 36. Qb3 {[%emt 0:00:00]} Qc6 {[%emt 0:00:00]} 37. Rd4 {[%emt 0:00:00]} b5 {[%emt 0:00:00]} 38. Qd5 {[%emt 0:00:00]} Qb6 {[%emt 0:00:00]} 39. Qd8 {[%emt 0:00:00]} Qc5 {[%emt 0:00:00]} 40. Qd5 {[%emt 0:00:00]} Qb6 {[%emt 0:00:00]} 41. h4 {[%emt 0:00:00]} Qb8 {[%emt 0:00:00]} 42. f4 {[%emt 0:00:00]} Qc8 {[%emt 0:00:00]} 43. Kd2 {[%emt 0:00:00]} Qc7 {[%emt 0:00:00]} 44. Qd7 {[%emt 0:00:00]} Qb6 {[%emt 0:00:00]} 45. Qd8 {[%emt 0:00:00]} Qc6 {[%emt 0:00:00]} 46. Kd3 {[%emt 0:00:00]} f5 {[%emt 0:00:00]} 47. exf5 {[%emt 0:00:00]} Qf3+ {[%emt 0:00:00]} 48. Kc2 {[%emt 0:00:00]} gxf5 {[%emt 0:00:00]} 49. Qg5+ {[%emt 0:00:00]} Rg6 {[%emt 0:00:00]} 50. Qxf5 {[%emt 0:00:00]} Qxg3 {[%emt 0:00:00]} 51. Rd7 {[%emt 0:00:25]} Rf6 {[%emt 0:00:00]} 52. Qg5+ {[%emt 0:00:27]} Qxg5 {[%emt 0:00:05]} 53. fxg5 {[%emt 0:00:11]} Re6 {[%emt 0:00:22]} 54. Kd2 {[%emt 0:00:59]} Kg6 {[%emt 0:00:25]} 55. Kd3 {[%emt 0:01:32]} Rc6 {[%emt 0:00:39]} 56. b3 {[%emt 0:00:29]} f6 {[%emt 0:00:52]} 57. gxf6 Rxf6 {[%emt 0:00:11]} 58. Re7 {[%emt 0:02:39]} h6 {[%emt 0:00:54]} 59. Re5 {[%emt 0:01:07]} Rc6 {[%emt 0:00:49]} 60. Kd4 {[%emt 0:00:19]} Rf6 {[%emt 0:03:00]} 61. h5+ {[%emt 0:00:29]} Kf7 {[%emt 0:00:25]} 62. c4 {[%emt 0:01:12]} bxc4 {[%emt 0:00:15]} 63. bxc4 {[%emt 0:00:34]} Rf4+ {[%emt 0:00:31]} 64. Kc5 {[%emt 0:00:42]} Rf2 {[%emt 0:00:23]} 65. a4 {[%emt 0:00:15]} Ra2 {[%emt 0:00:35]} 66. Kb4 {[%emt 0:00:15]} Rb2+ {[%emt 0:00:24]} 67. Ka5 {[%emt 0:00:14]} Rc2 {[%emt 0:01:17]} 68. c5 {[%emt 0:00:29]} Kf6 {[%emt 0:00:23]} 69. Rd5 {[%emt 0:00:24]} Ke6 {[%emt 0:00:27]} 70. Rd6+ {[%emt 0:00:29]} Ke5 {[%emt 0:00:23]} 71. Kb6 {[%emt 0:00:57]} Rc4 {[%emt 0:00:31]} 72. a5 {[%emt 0:00:24]} Rb4+ {[%emt 0:01:36]} 73. Kxa6 {[%emt 0:00:20]} Rb1 {[%emt 0:00:39]} 74. Rxh6 {[%emt 0:00:25]} Kd5 {[%emt 0:00:16]} 75. c6 {[%emt 0:00:34]} Rc1 76. Kb7 {[%emt 0:00:20]} Rb1+ {[%emt 0:00:03]} 77. Kc8 {[%emt 0:13:19]} Ra1 78. c7 {[%emt 0:00:00]} 1-0

[Event "34rd NATO Championship 2024"]
[Site "Rhodes"]
[Date "2024.10.22"]
[Round "3.47"]
[White "Papler, Peter"]
[Black "Middaugh, Jon S"]
[Result "1/2-1/2"]
[ECO "C11"]
[WhiteElo "1780"]
[BlackElo "1877"]
[Annotator "NA RC"]
[PlyCount "60"]
[EventDate "2024.09.18"]
[EventType "swiss"]
[EventCountry "GRE"]
[SourceTitle "playchess.com"]
[Source "ChessBase"]
[SourceQuality "1"]
[TimeControl "5400+30"]

1. e4 {[%emt 0:00:10]} e6 {[%emt 0:00:10]} 2. Nf3 {[%emt 0:00:20]} d5 {[%emt 0:00:12]} 3. Nc3 {[%emt 0:00:22]} Nf6 {[%emt 0:01:45]} 4. e5 {[%emt 0:01:05]} Nfd7 {[%emt 0:00:16]} 5. d4 {[%emt 0:00:22]} c5 {[%emt 0:00:27]} 6. Ne2 {[%emt 0:01:55]} cxd4 {[%emt 0:00:57]} 7. Nexd4 {[%emt 0:00:21]} Bc5 {[%emt 0:01:29]} 8. c3 {[%emt 0:00:58]} Nc6 {[%emt 0:00:48]} 9. Bb5 {[%emt 0:05:22]} Bxd4 {[%emt 0:03:00]} 10. Nxd4 {[%emt 0:00:35]} Ncxe5 {[%emt 0:00:59]} 11. O-O {[%emt 0:01:20]} a6 {[%emt 0:01:35]} 12. Ba4 {[%emt 0:00:38]} O-O {[%emt 0:03:50]} 13. Bc2 {[%emt 0:00:40]} Ng6 {[%emt 0:03:00]} 14. f4 {[%emt 0:01:47]} Nf6 {[%emt 0:02:06]} 15. Qf3 {[%emt 0:12:34]} Bd7 {[%emt 0:06:07]} 16. Bd2 {[%emt 0:01:09]} Qc7 {[%emt 0:04:37]} 17. Rae1 {[%emt 0:01:03]} Bc6 {[%emt 0:04:56]} 18. Bc1 {[%emt 0:04:24]} Rfe8 {[%emt 0:02:43]} 19. f5 {[%emt 0:05:06]} exf5 {[%emt 0:01:12]} 20. Qxf5 {[%emt 0:03:34]} Re5 {[%emt 0:02:23]} 21. Qh3 {[%emt 0:01:39]} Rh5 {[%emt 0:08:29]} 22. Qg3 {[%emt 0:00:10]} Qxg3 {[%emt 0:00:51]} 23. hxg3 {[%emt 0:00:10]} Re8 {[%emt 0:02:19]} 24. Rxe8+ {[%emt 0:02:12]} Bxe8 {[%emt 0:01:22]} 25. Bf5 {[%emt 0:02:09]} Rxf5 {[%emt 0:11:14]} 26. Rxf5 {[%emt 0:01:15]} Bd7 {[%emt 0:00:44]} 27. Rf1 {[%emt 0:00:55]} b5 {[%emt 0:01:35]} 28. Bf4 {[%emt 0:04:57]} Ne4 {[%emt 0:00:41]} 29. Rd1 {[%emt 0:02:15]} f6 {[%emt 0:01:32]} 30. Nf3 {[%emt 0:01:10]} Ne7 {[%emt 0:01:05]} 1/2-1/2

[Event "34rd NATO Championship 2024"]
[Site "Rhodes"]
[Date "2024.10.22"]
[Round "3.48"]
[White "Steen, Kris"]
[Black "Woolf, Ben"]
[Result "1/2-1/2"]
[ECO "C01"]
[WhiteElo "1876"]
[BlackElo "1747"]
[Annotator "NA RC"]
[PlyCount "61"]
[EventDate "2024.09.18"]
[EventType "swiss"]
[EventCountry "GRE"]
[SourceTitle "playchess.com"]
[Source "ChessBase"]
[SourceQuality "1"]
[TimeControl "5400+30"]

1. d4 {[%emt 0:00:03]} e6 {[%emt 0:00:17]} 2. e4 {[%emt 0:01:02]} d5 {[%emt 0:00:10]} 3. exd5 {[%emt 0:00:07]} exd5 {[%emt 0:00:23]} 4. Nf3 {[%emt 0:00:06]} Nf6 {[%emt 0:00:36]} 5. Bd3 {[%emt 0:00:06]} Be7 {[%emt 0:00:46]} 6. O-O {[%emt 0:00:09]} Bg4 {[%emt 0:01:06]} 7. Re1 {[%emt 0:00:34]} O-O {[%emt 0:00:37]} 8. h3 {[%emt 0:00:54]} Bxf3 {[%emt 0:03:58]} 9. Qxf3 {[%emt 0:00:04]} c6 {[%emt 0:01:23]} 10. Bg5 {[%emt 0:00:50]} Nbd7 {[%emt 0:00:37]} 11. Nd2 {[%emt 0:00:31]} Re8 {[%emt 0:01:09]} 12. Re3 {[%emt 0:03:40]} Nf8 {[%emt 0:03:58]} 13. c3 {[%emt 0:08:57]} Ne6 {[%emt 0:02:18]} 14. Bh4 {[%emt 0:00:08]} Nd7 {[%emt 0:07:18]} 15. Bxe7 {[%emt 0:02:19]} Rxe7 {[%emt 0:00:23]} 16. Rae1 {[%emt 0:00:57]} Qc7 {[%emt 0:05:55]} 17. Bf5 {[%emt 0:13:38]} Ndf8 {[%emt 0:00:33]} 18. g3 {[%emt 0:13:12]} Rae8 {[%emt 0:03:29]} 19. h4 {[%emt 0:00:26]} a5 {[%emt 0:06:38]} 20. Qd1 {[%emt 0:03:36]} b5 {[%emt 0:04:34]} 21. Nf3 {[%emt 0:02:12]} Nd8 {[%emt 0:07:59]} 22. Rxe7 {[%emt 0:01:02]} Rxe7 {[%emt 0:00:08]} 23. Kf1 {[%emt 0:02:32]} a4 {[%emt 0:07:19]} 24. Rxe7 {[%emt 0:00:24]} Qxe7 {[%emt 0:00:14]} 25. Qe2 {[%emt 0:00:09]} Qxe2+ {[%emt 0:01:30]} 26. Kxe2 {[%emt 0:00:01]} f6 {[%emt 0:00:48]} 27. b3 {[%emt 0:01:38]} axb3 {[%emt 0:01:58]} 28. axb3 {[%emt 0:00:02]} Kf7 {[%emt 0:00:30]} 29. Kd3 {[%emt 0:01:05]} g6 {[%emt 0:01:16]} 30. Bc8 {[%emt 0:01:35]} Ke7 {[%emt 0:00:52]} 31. c4 {[%emt 0:01:18]} 1/2-1/2

[Event "34rd NATO Championship 2024"]
[Site "Rhodes"]
[Date "2024.10.23"]
[Round "4.1"]
[White "Aizpurua, Patrick Emilio"]
[Black "Alexakis, Dimitris"]
[Result "0-1"]
[ECO "A70"]
[WhiteElo "2322"]
[BlackElo "2504"]
[Annotator "RC"]
[PlyCount "72"]
[EventDate "2024.09.18"]
[EventType "swiss"]
[EventCountry "GRE"]
[SourceTitle "playchess.com"]
[Source "ChessBase"]
[SourceQuality "1"]
[TimeControl "5400+30"]

1. d4 {[%emt 0:00:02]} Nf6 {[%emt 0:01:10]} 2. c4 {[%emt 0:00:06]} c5 {[%emt 0:01:34]} 3. d5 {[%emt 0:01:01]} e6 {[%emt 0:00:07]} 4. Nc3 {[%emt 0:00:35]} exd5 {[%emt 0:00:11]} 5. cxd5 {[%emt 0:00:05]} d6 {[%emt 0:00:05]} 6. e4 {[%emt 0:00:35]} g6 {[%emt 0:00:07]} 7. Bd3 {[%emt 0:01:01]} Bg7 {[%emt 0:00:41]} 8. Nf3 {[%emt 0:00:12]} a6 {[%emt 0:04:08]} 9. a4 {[%emt 0:00:10]} Bg4 {[%emt 0:00:13]} 10. h3 {[%emt 0:00:15]} Bxf3 {[%emt 0:00:09]} 11. Qxf3 {[%emt 0:00:08]} Nbd7 {[%emt 0:04:21]} 12. Qd1 {[%emt 0:07:44]} O-O {[%emt 0:05:40]} 13. O-O {[%emt 0:04:39]} Rc8 14. Be3 {[%emt 1:20:57]} Re8 {[%emt 1:19:04]} 15. Re1 {[%emt 0:00:30]} c4 {[%emt 0:00:00]} 16. Bc2 {[%emt 0:00:30]} h5 {[%emt 0:01:00]} 17. f4 {[%emt 0:00:00]} Nc5 {[%emt 0:00:00]} 18. Qf3 {[%emt 0:00:00]} Nfd7 {[%emt 0:00:00]} 19. Bf2 {[%emt 0:01:30]} Qa5 {[%emt 0:00:00]} 20. e5 {[%emt 0:00:00]} dxe5 {[%emt 0:00:00]} 21. f5 {[%emt 0:00:00]} e4 {[%emt 0:00:00]} 22. Nxe4 {[%emt 0:00:00]} Ne5 {[%emt 0:00:00]} 23. Qg3 {[%emt 0:00:00]} Ncd3 {[%emt 0:00:00]} 24. fxg6 {[%emt 0:00:00]} fxg6 {[%emt 0:00:00]} 25. Bxd3 {[%emt 0:00:00]} cxd3 {[%emt 0:00:00]} 26. Nd6 {[%emt 0:00:00]} d2 {[%emt 0:00:00]} 27. Nxc8 {[%emt 0:00:00]} h4 {[%emt 0:02:40]} 28. Qf4 {[%emt 0:00:00]} dxe1=Q+ {[%emt 0:02:07]} 29. Rxe1 {[%emt 0:00:00]} Nf3+ {[%emt 0:00:07]} 30. gxf3 {[%emt 0:00:00]} Rxe1+ {[%emt 0:00:03]} 31. Kg2 {[%emt 0:00:00]} Re2 {[%emt 0:01:10]} 32. Qc4 {[%emt 0:00:00]} Qd2 {[%emt 0:01:08]} 33. d6+ {[%emt 0:00:00]} Kf8 {[%emt 0:00:12]} 34. Qxh4 {[%emt 0:00:00]} Bd4 {[%emt 0:00:31]} 35. Qd8+ {[%emt 0:00:00]} Kg7 {[%emt 0:00:11]} 36. Kg3 {[%emt 0:00:00]} Be5+ {[%emt 0:00:26]} 0-1

[Event "34rd NATO Championship 2024"]
[Site "Rhodes"]
[Date "2024.10.23"]
[Round "4.2"]
[White "Reizniece-Ozola, Dana"]
[Black "Papasimakopoulos, Alexandros"]
[Result "1/2-1/2"]
[ECO "A13"]
[WhiteElo "2255"]
[BlackElo "2372"]
[Annotator "RC"]
[PlyCount "98"]
[EventDate "2024.09.18"]
[EventType "swiss"]
[EventCountry "GRE"]
[SourceTitle "playchess.com"]
[Source "ChessBase"]
[SourceQuality "1"]
[TimeControl "5400+30"]

1. c4 {[%emt 0:00:03]} e6 {[%emt 0:05:19]} 2. g3 {[%emt 0:00:35]} d5 {[%emt 0:00:49]} 3. Bg2 {[%emt 0:00:14]} c6 {[%emt 0:03:55]} 4. Qc2 {[%emt 0:04:16]} Nf6 {[%emt 0:00:52]} 5. Nf3 {[%emt 0:00:07]} Bd6 {[%emt 0:00:46]} 6. O-O {[%emt 0:00:23]} e5 {[%emt 0:01:06]} 7. d3 {[%emt 0:01:18]} O-O {[%emt 0:00:12]} 8. e4 {[%emt 0:03:40]} dxe4 {[%emt 0:00:49]} 9. dxe4 {[%emt 0:00:02]} Qe7 {[%emt 0:01:19]} 10. Nc3 {[%emt 0:03:47]} Bg4 {[%emt 0:09:01]} 11. Nh4 {[%emt 0:19:48]} Qe6 {[%emt 0:06:45]} 12. Nd1 {[%emt 0:01:17]} Bc5 {[%emt 0:04:06]} 13. Nf5 {[%emt 0:02:28]} g6 {[%emt 0:06:21]} 14. Nh6+ {[%emt 0:02:21]} Kg7 {[%emt 0:00:02]} 15. Nxg4 {[%emt 0:02:02]} Nxg4 {[%emt 0:01:10]} 16. h3 {[%emt 0:01:26]} Nf6 {[%emt 0:00:29]} 17. Kh2 {[%emt 0:00:54]} Re8 {[%emt 0:00:47]} 18. b3 {[%emt 0:11:09]} Bd4 {[%emt 0:04:18]} 19. Bb2 {[%emt 0:00:48]} Bxb2 {[%emt 0:03:48]} 20. Nxb2 {[%emt 0:02:26]} c5 {[%emt 0:04:11]} 21. Nd3 {[%emt 0:09:11]} Nfd7 {[%emt 0:00:20]} 22. f4 {[%emt 0:06:25]} f6 {[%emt 0:03:19]} 23. h4 {[%emt 0:01:17]} Qe7 {[%emt 0:02:50]} 24. Bh3 {[%emt 0:02:41]} Na6 {[%emt 0:14:03]} 25. Rad1 {[%emt 0:06:47]} Nf8 {[%emt 0:03:18]} 26. fxe5 {[%emt 0:04:18]} fxe5 {[%emt 0:00:07]} 27. Rf3 {[%emt 0:01:07]} Ne6 {[%emt 0:02:46]} 28. Nxe5 {[%emt 0:03:14]} Nd4 {[%emt 0:00:37]} 29. Rxd4 {[%emt 0:00:10]} cxd4 {[%emt 0:01:24]} 30. Rf7+ {[%emt 0:00:06]} Qxf7 {[%emt 0:00:06]} 31. Nxf7 {[%emt 0:00:03]} Kxf7 {[%emt 0:00:07]} 32. Qf2+ {[%emt 0:00:13]} Kg8 {[%emt 0:00:06]} 33. Qxd4 {[%emt 0:00:11]} Re7 {[%emt 0:00:44]} 34. c5 {[%emt 0:02:35]} h5 {[%emt 0:08:51]} 35. c6 {[%emt 0:02:12]} b5 {[%emt 0:03:26]} 36. Qd5+ {[%emt 0:02:27]} Kh7 {[%emt 0:00:06]} 37. Qxb5 {[%emt 0:00:15]} Nc7 {[%emt 0:00:38]} 38. Qb7 {[%emt 0:01:07]} Rf8 {[%emt 0:00:40]} 39. Qxa7 {[%emt 0:01:08]} Rff7 {[%emt 0:00:54]} 40. Bd7 {[%emt 0:00:57]} Ne6 {[%emt 0:00:51]} 41. Qe3 {[%emt 0:01:21]} Nc7 {[%emt 0:00:21]} 42. a4 {[%emt 0:01:01]} Nd5 {[%emt 0:00:01]} 43. Qc5 {[%emt 0:00:58]} Nf6 {[%emt 0:00:13]} 44. Qxe7 {[%emt 0:02:12]} Rxe7 {[%emt 0:00:01]} 45. c7 {[%emt 0:00:04]} Rxd7 {[%emt 0:00:06]} 46. c8=Q {[%emt 0:00:06]} Ng4+ {[%emt 0:00:15]} 47. Kg1 {[%emt 0:01:00]} Rd1+ {[%emt 0:00:08]} 48. Kg2 {[%emt 0:00:05]} Rd2+ {[%emt 0:00:01]} 49. Kf1 {[%emt 0:00:30]} Nh2+ {[%emt 0:00:01]} 1/2-1/2

[Event "34rd NATO Championship 2024"]
[Site "Rhodes"]
[Date "2024.10.23"]
[Round "4.3"]
[White "Rahmanidis, Petros"]
[Black "Andersen, Hans-Christoph"]
[Result "1-0"]
[ECO "B13"]
[WhiteElo "2219"]
[BlackElo "2229"]
[Annotator "RC"]
[PlyCount "101"]
[EventDate "2024.09.18"]
[EventType "swiss"]
[EventCountry "GRE"]
[SourceTitle "playchess.com"]
[Source "ChessBase"]
[SourceQuality "1"]
[TimeControl "5400+30"]

1. e4 {[%emt 0:02:54]} c6 {[%emt 0:00:44]} 2. d4 {[%emt 0:00:19]} d5 {[%emt 0:00:09]} 3. exd5 {[%emt 0:00:19]} cxd5 {[%emt 0:00:16]} 4. Bd3 {[%emt 0:00:08]} Nf6 {[%emt 0:01:34]} 5. c3 {[%emt 0:00:47]} Bg4 {[%emt 0:01:48]} 6. Qb3 {[%emt 0:00:16]} Qc7 {[%emt 0:00:32]} 7. h3 {[%emt 0:00:28]} Bh5 {[%emt 0:03:17]} 8. Ne2 {[%emt 0:00:40]} Bxe2 {[%emt 0:01:41]} 9. Bf4 {[%emt 0:01:33]} Qd7 {[%emt 0:14:49]} 10. Bxe2 {[%emt 0:00:49]} Nc6 {[%emt 0:00:11]} 11. Nd2 {[%emt 0:07:44]} e6 {[%emt 0:07:12]} 12. O-O {[%emt 0:01:59]} Be7 {[%emt 0:03:42]} 13. Bd3 {[%emt 0:11:50]} O-O {[%emt 0:00:46]} 14. Nf3 {[%emt 0:00:46]} a6 {[%emt 0:20:12]} 15. a4 {[%emt 0:04:16]} Bd6 {[%emt 0:01:48]} 16. Bxd6 {[%emt 0:04:10]} Qxd6 {[%emt 0:00:02]} 17. Rfe1 {[%emt 0:00:11]} Nd7 {[%emt 0:07:59]} 18. a5 {[%emt 0:20:42]} Qc7 {[%emt 0:04:26]} 19. Qa2 {[%emt 0:10:36]} Rad8 {[%emt 0:10:08]} 20. Bf1 {[%emt 0:04:32]} Rfe8 {[%emt 0:06:49]} 21. Re3 {[%emt 0:01:22]} Ne7 {[%emt 0:06:07]} 22. Bd3 {[%emt 0:04:52]} Nc8 {[%emt 0:00:52]} 23. Rae1 {[%emt 0:07:31]} Nd6 {[%emt 0:00:19]} 24. Nd2 {[%emt 0:00:58]} g6 {[%emt 0:01:56]} 25. g3 {[%emt 0:02:07]} Rc8 {[%emt 0:00:19]} 26. Kg2 {[%emt 0:02:08]} Nf6 {[%emt 0:01:04]} 27. Nb3 {[%emt 0:01:57]} Nc4 {[%emt 0:00:18]} 28. Bxc4 {[%emt 0:01:46]} Qxc4 {[%emt 0:00:44]} 29. Qa3 {[%emt 0:00:31]} Nd7 {[%emt 0:01:09]} 30. Nc1 {[%emt 0:01:04]} Qc6 {[%emt 0:01:24]} 31. Nd3 {[%emt 0:00:35]} Qc7 {[%emt 0:02:05]} 32. Qa2 {[%emt 0:05:08]} Qc4 {[%emt 0:00:16]} 33. Qa1 {[%emt 0:00:44]} Qb3 {[%emt 0:00:50]} 34. Rf3 {[%emt 0:00:39]} Rc4 {[%emt 0:00:55]} 35. Qc1 {[%emt 0:00:57]} Ra4 {[%emt 0:00:46]} 36. Qf4 {[%emt 0:00:35]} Rf8 {[%emt 0:00:31]} 37. Qh6 {[%emt 0:00:34]} Qc4 {[%emt 0:00:45]} 38. Ree3 {[%emt 0:00:27]} Qc7 {[%emt 0:00:15]} 39. Rf4 {[%emt 0:00:29]} Re8 {[%emt 0:00:46]} 40. Ref3 {[%emt 0:00:35]} f5 {[%emt 0:00:18]} 41. g4 {[%emt 0:00:28]} Rxa5 {[%emt 0:00:34]} 42. gxf5 {[%emt 0:00:29]} exf5 {[%emt 0:00:40]} 43. Rxf5 {[%emt 0:00:22]} gxf5 {[%emt 0:00:28]} 44. Rg3+ {[%emt 0:00:40]} Qxg3+ {[%emt 0:00:04]} 45. Kxg3 {[%emt 0:00:21]} Re7 {[%emt 0:00:54]} 46. Qd6 {[%emt 0:00:36]} Rg7+ {[%emt 0:00:27]} 47. Kf3 {[%emt 0:00:20]} Rb5 {[%emt 0:00:21]} 48. b4 {[%emt 0:00:39]} a5 {[%emt 0:00:41]} 49. Nc5 {[%emt 0:00:30]} Nxc5 {[%emt 0:00:11]} 50. Qd8+ {[%emt 0:00:30]} Kf7 {[%emt 0:00:04]} 51. dxc5 {[%emt 0:00:11]} 1-0

[Event "34rd NATO Championship 2024"]
[Site "Rhodes"]
[Date "2024.10.23"]
[Round "4.4"]
[White "Stein, Robert"]
[Black "Pavlidis, Anastasios"]
[Result "1-0"]
[ECO "E92"]
[WhiteElo "2409"]
[BlackElo "2279"]
[Annotator "RC"]
[PlyCount "99"]
[EventDate "2024.09.18"]
[EventType "swiss"]
[EventCountry "GRE"]
[SourceTitle "playchess.com"]
[Source "ChessBase"]
[SourceQuality "1"]
[TimeControl "5400+30"]

1. Nf3 {[%emt 0:00:04]} Nf6 {[%emt 0:00:19]} 2. c4 {[%emt 0:00:20]} g6 {[%emt 0:00:24]} 3. Nc3 {[%emt 0:01:01]} Bg7 {[%emt 0:00:37]} 4. d4 {[%emt 0:02:16]} O-O {[%emt 0:00:27]} 5. e4 {[%emt 0:00:20]} d6 {[%emt 0:00:13]} 6. Be2 {[%emt 0:00:22]} e5 {[%emt 0:00:20]} 7. Be3 {[%emt 0:01:03]} exd4 {[%emt 0:02:13]} 8. Nxd4 {[%emt 0:00:08]} Re8 {[%emt 0:00:19]} 9. f3 {[%emt 0:01:18]} c6 {[%emt 0:00:51]} 10. Bf2 {[%emt 0:00:13]} d5 {[%emt 0:02:05]} 11. exd5 {[%emt 0:00:09]} cxd5 {[%emt 0:00:08]} 12. O-O {[%emt 0:00:08]} Nc6 {[%emt 0:00:49]} 13. c5 {[%emt 0:01:04]} Nh5 {[%emt 0:01:02]} 14. Qd2 {[%emt 0:10:37]} Be5 {[%emt 0:01:16]} 15. g3 {[%emt 0:00:34]} Ng7 {[%emt 0:00:45]} 16. Bb5 {[%emt 0:11:55]} Bd7 {[%emt 0:03:10]} 17. Bxc6 {[%emt 0:07:39]} bxc6 {[%emt 0:01:54]} 18. Nce2 {[%emt 0:05:41]} a5 {[%emt 0:30:15]} 19. Rac1 {[%emt 0:12:05]} a4 {[%emt 0:02:50]} 20. b4 {[%emt 0:12:35]} axb3 {[%emt 0:01:48]} 21. axb3 {[%emt 0:00:06]} Ra3 {[%emt 0:08:16]} 22. b4 {[%emt 0:07:44]} Qa8 {[%emt 0:01:41]} 23. Nc3 {[%emt 0:05:11]} Ne6 {[%emt 0:20:02]} 24. Nxe6 {[%emt 0:02:50]} Bxe6 {[%emt 0:00:58]} 25. Bd4 {[%emt 0:01:18]} Bxd4+ {[%emt 0:05:43]} 26. Qxd4 {[%emt 0:00:06]} Rb3 {[%emt 0:00:46]} 27. Ra1 {[%emt 0:02:57]} Qb7 {[%emt 0:01:13]} 28. Rab1 {[%emt 0:00:05]} Rxb1 {[%emt 0:04:09]} 29. Rxb1 {[%emt 0:00:06]} Qa6 {[%emt 0:00:41]} 30. g4 {[%emt 0:05:22]} Qc4 {[%emt 0:01:43]} 31. Qxc4 {[%emt 0:01:07]} dxc4 {[%emt 0:00:05]} 32. Kf2 {[%emt 0:02:19]} Kf8 {[%emt 0:02:07]} 33. b5 {[%emt 0:00:59]} cxb5 {[%emt 0:01:16]} 34. Rxb5 {[%emt 0:00:10]} Rc8 {[%emt 0:04:09]} 35. Ke3 {[%emt 0:03:54]} Ke7 {[%emt 0:00:07]} 36. Rb7+ {[%emt 0:00:57]} Kd8 {[%emt 0:01:11]} 37. Kd4 {[%emt 0:00:21]} Ra8 {[%emt 0:01:54]} 38. c6 {[%emt 0:01:39]} Ra3 {[%emt 0:00:54]} 39. g5 {[%emt 0:01:03]} Rb3 {[%emt 0:00:29]} 40. Ra7 {[%emt 0:00:22]} Kc8 {[%emt 0:00:44]} 41. h4 {[%emt 0:00:18]} Kb8 {[%emt 0:00:28]} 42. Re7 {[%emt 0:00:43]} Kc8 {[%emt 0:00:32]} 43. f4 {[%emt 0:02:10]} Kd8 {[%emt 0:00:16]} 44. Ra7 {[%emt 0:00:04]} Kc8 {[%emt 0:00:25]} 45. Ne4 {[%emt 0:00:16]} Kb8 {[%emt 0:00:50]} 46. Re7 {[%emt 0:00:04]} c3 {[%emt 0:00:33]} 47. c7+ {[%emt 0:01:32]} Ka8 {[%emt 0:00:30]} 48. Rxe6 {[%emt 0:00:08]} Kb7 {[%emt 0:00:12]} 49. Rc6 {[%emt 0:00:07]} Rb4+ {[%emt 0:00:14]} 50. Kxc3 {[%emt 0:00:05]} 1-0